[Event "*** Titled Tuesday Blitz"]
[Site "Chess.com"]
[Date "2019.08.06"]
[Round "7"]
[White "AntonSmirnov"]
[Black "Genghis_K"]
[Result "1-0"]
[WhiteElo "2882"]
[BlackElo "2878"]
[TimeControl "180+2"]
[EndTime "14:38:29 PDT"]
[Termination "AntonSmirnov won by checkmate"]

1. e4 {[%clk 0:03:01.9]} 1... c5 {[%clk 0:02:59.8]} 2. Nf3 {[%clk 0:03:02.9]}
2... Nc6 {[%clk 0:03:01.1]} 3. Nc3 {[%clk 0:03:03.5]} 3... Nf6 {[%clk
0:03:01.5]} 4. d4 {[%clk 0:03:04.5]} 4... cxd4 {[%clk 0:03:02.7]} 5. Nxd4 {[%clk
0:03:06.4]} 5... e5 {[%clk 0:03:03.8]} 6. Ndb5 {[%clk 0:03:07.3]} 6... d6 {[%clk
0:03:05.3]} 7. Bg5 {[%clk 0:03:08.5]} 7... a6 {[%clk 0:03:06.6]} 8. Na3 {[%clk
0:03:09.9]} 8... b5 {[%clk 0:03:08.1]} 9. Nd5 {[%clk 0:03:11.3]} 9... Be7 {[%clk
0:03:08.8]} 10. Bxf6 {[%clk 0:03:12.6]} 10... Bxf6 {[%clk 0:03:10.1]} 11. c4
{[%clk 0:03:13.9]} 11... b4 {[%clk 0:03:10.8]} 12. Nc2 {[%clk 0:03:15.1]} 12...
O-O {[%clk 0:03:10.6]} 13. h4 {[%clk 0:03:08.5]} 13... Be6 {[%clk 0:03:05.9]}
14. g3 {[%clk 0:03:06.9]} 14... g6 {[%clk 0:02:47.8]} 15. Bg2 {[%clk 0:03:05.9]}
15... Bg7 {[%clk 0:02:47.3]} 16. O-O {[%clk 0:03:06.7]} 16... a5 {[%clk
0:02:47.4]} 17. Qd2 {[%clk 0:03:05.8]} 17... Rc8 {[%clk 0:02:41.2]} 18. b3
{[%clk 0:02:57.5]} 18... f5 {[%clk 0:02:42.3]} 19. exf5 {[%clk 0:02:53.7]} 19...
gxf5 {[%clk 0:02:39.5]} 20. Rad1 {[%clk 0:02:53.3]} 20... Kh8 {[%clk 0:02:28.5]}
21. Rfe1 {[%clk 0:02:40.3]} 21... e4 {[%clk 0:02:16.2]} 22. Nf4 {[%clk
0:02:40.8]} 22... Bg8 {[%clk 0:02:09.8]} 23. Qxd6 {[%clk 0:02:37.6]} 23... Ne5
{[%clk 0:02:05.2]} 24. Ne3 {[%clk 0:02:25]} 24... Nd3 {[%clk 0:02:01.7]} 25. Qa6
{[%clk 0:02:10.1]} 25... Qc7 {[%clk 0:01:44.2]} 26. Nxd3 {[%clk 0:02:10.5]}
26... exd3 {[%clk 0:01:45]} 27. Rxd3 {[%clk 0:02:09.2]} 27... f4 {[%clk
0:01:46.2]} 28. Nd5 {[%clk 0:01:45.2]} 28... Bxd5 {[%clk 0:01:26.7]} 29. Bxd5
{[%clk 0:01:35.5]} 29... fxg3 {[%clk 0:01:20.8]} 30. fxg3 {[%clk 0:01:30.3]}
30... Qc5+ {[%clk 0:00:49.9]} 31. Kh1 {[%clk 0:01:30.8]} 31... Rce8 {[%clk
0:00:38.3]} 32. Rxe8 {[%clk 0:00:57.9]} 32... Rxe8 {[%clk 0:00:40.2]} 33. Qc6
{[%clk 0:00:52.8]} 33... Re1+ {[%clk 0:00:30.6]} 34. Kh2 {[%clk 0:00:53.7]}
34... Qf2+ {[%clk 0:00:24.2]} 35. Bg2 {[%clk 0:00:46.5]} 35... Qf8 {[%clk
0:00:04.1]} 36. Qc7 {[%clk 0:00:39.8]} 36... Re7 {[%clk 0:00:04.9]} 37. Qxa5
{[%clk 0:00:39.6]} 37... Re8 {[%clk 0:00:05.4]} 38. Rd2 {[%clk 0:00:35.8]} 38...
Be5 {[%clk 0:00:06.8]} 39. Rd3 {[%clk 0:00:33.5]} 39... Qe7 {[%clk 0:00:07.8]}
40. Kh1 {[%clk 0:00:19.2]} 40... Rg8 {[%clk 0:00:09.1]} 41. Qd5 {[%clk
0:00:15.4]} 41... Bxg3 {[%clk 0:00:09.2]} 42. Qd4+ {[%clk 0:00:16.3]} 42... Be5
{[%clk 0:00:10.5]} 43. Qe4 {[%clk 0:00:17.3]} 43... Qg7 {[%clk 0:00:10.5]} 44.
c5 {[%clk 0:00:16.9]} 44... Bc7 {[%clk 0:00:10.9]} 45. Qd4 {[%clk 0:00:16.5]}
45... Be5 {[%clk 0:00:10.2]} 46. Qe4 {[%clk 0:00:17.5]} 46... Bc7 {[%clk
0:00:11.1]} 47. Rd1 {[%clk 0:00:18.4]} 47... Qg3 {[%clk 0:00:08.7]} 48. Kg1
{[%clk 0:00:19]} 48... Qh2+ {[%clk 0:00:06]} 49. Kf1 {[%clk 0:00:18.7]} 49...
Rf8+ {[%clk 0:00:06.6]} 50. Ke2 {[%clk 0:00:18.4]} 50... Qg3 {[%clk 0:00:08]}
51. Rd7 {[%clk 0:00:15.6]} 51... Rf2+ {[%clk 0:00:06.8]} 52. Kd1 {[%clk
0:00:16.5]} 52... Be5 {[%clk 0:00:04.9]} 53. Qxh7# {[%clk 0:00:17.4]} 1-0

[Event "*** Titled Tuesday Blitz"]
[Site "Chess.com"]
[Date "2019.08.06"]
[Round "7"]
[White "NTBT_DHS"]
[Black "Jbd735"]
[Result "0-1"]
[WhiteElo "2643"]
[BlackElo "2470"]
[TimeControl "180+2"]
[EndTime "14:38:32 PDT"]
[Termination "Jbd735 won by resignation"]

1. d4 {[%clk 0:03:01.9]} 1... d5 {[%clk 0:03:00.8]} 2. c4 {[%clk 0:03:02.6]}
2... c6 {[%clk 0:03:01.9]} 3. Nf3 {[%clk 0:03:03.1]} 3... e6 {[%clk 0:03:02.5]}
4. Nbd2 {[%clk 0:02:59.1]} 4... c5 {[%clk 0:02:58.3]} 5. e3 {[%clk 0:02:56.8]}
5... Nc6 {[%clk 0:02:56.9]} 6. dxc5 {[%clk 0:02:52.2]} 6... Bxc5 {[%clk
0:02:56.2]} 7. a3 {[%clk 0:02:53.6]} 7... a5 {[%clk 0:02:46]} 8. b3 {[%clk
0:02:54.3]} 8... Nf6 {[%clk 0:02:42.3]} 9. Bb2 {[%clk 0:02:54.3]} 9... d4 {[%clk
0:02:32.6]} 10. exd4 {[%clk 0:02:44.4]} 10... Nxd4 {[%clk 0:02:34.5]} 11. Nxd4
{[%clk 0:02:37.1]} 11... Bxd4 {[%clk 0:02:36.4]} 12. Qc2 {[%clk 0:02:38]} 12...
b6 {[%clk 0:01:37.7]} 13. Be2 {[%clk 0:02:20.8]} 13... Bb7 {[%clk 0:01:37.5]}
14. Bf3 {[%clk 0:02:21.6]} 14... Bxb2 {[%clk 0:01:35.8]} 15. Qxb2 {[%clk
0:02:19.4]} 15... Bxf3 {[%clk 0:01:35.3]} 16. Nxf3 {[%clk 0:02:21.3]} 16... Qd3
{[%clk 0:01:34.6]} 17. Rd1 {[%clk 0:02:19.9]} 17... Qe4+ {[%clk 0:01:35]} 18.
Qe2 {[%clk 0:02:21]} 18... Rd8 {[%clk 0:01:25.3]} 19. Rxd8+ {[%clk 0:02:16.7]}
19... Kxd8 {[%clk 0:01:27.2]} 20. Qxe4 {[%clk 0:02:10.7]} 20... Nxe4 {[%clk
0:01:29.1]} 21. Ke2 {[%clk 0:02:11.3]} 21... Kc7 {[%clk 0:01:09.5]} 22. Ke3
{[%clk 0:02:11.6]} 22... Nd6 {[%clk 0:01:06]} 23. g4 {[%clk 0:02:03.3]} 23... f6
{[%clk 0:01:03.2]} 24. h4 {[%clk 0:02:02.9]} 24... h5 {[%clk 0:01:01.9]} 25. g5
{[%clk 0:02:03.8]} 25... Nf5+ {[%clk 0:01:01.9]} 26. Ke2 {[%clk 0:01:58.1]}
26... e5 {[%clk 0:00:50]} 27. Rg1 {[%clk 0:01:51.3]} 27... Kd6 {[%clk
0:00:48.2]} 28. gxf6 {[%clk 0:01:46.1]} 28... gxf6 {[%clk 0:00:48.6]} 29. Rd1+
{[%clk 0:01:41.6]} 29... Ke6 {[%clk 0:00:48.3]} 30. Rd5 {[%clk 0:01:35.8]} 30...
Rc8 {[%clk 0:00:29.8]} 31. Rd1 {[%clk 0:01:13.1]} 31... a4 {[%clk 0:00:19]} 32.
Rb1 {[%clk 0:01:03.6]} 32... axb3 {[%clk 0:00:08.2]} 33. Rxb3 {[%clk 0:01:05.5]}
33... Rc6 {[%clk 0:00:07.7]} 34. Rb4 {[%clk 0:01:03.3]} 34... Nd6 {[%clk
0:00:04.9]} 35. Nd2 {[%clk 0:01:03.6]} 35... Kf5 {[%clk 0:00:05.4]} 36. f3
{[%clk 0:00:59.4]} 36... Nb7 {[%clk 0:00:03.8]} 37. Ne4 {[%clk 0:00:57.9]} 37...
Nc5 {[%clk 0:00:03.3]} 38. Ng3+ {[%clk 0:00:58.8]} 38... Kg6 {[%clk 0:00:03]}
39. Ke3 {[%clk 0:00:55.1]} 39... Ne6 {[%clk 0:00:04.2]} 40. Ne4 {[%clk
0:00:51.8]} 40... Nd4 {[%clk 0:00:05]} 41. Rb2 {[%clk 0:00:49.6]} 41... f5
{[%clk 0:00:05.5]} 42. Rg2+ {[%clk 0:00:48.7]} 42... Kf7 {[%clk 0:00:05.2]} 43.
Ng5+ {[%clk 0:00:48.3]} 43... Ke7 {[%clk 0:00:06.5]} 44. f4 {[%clk 0:00:48.7]}
44... Rxc4 {[%clk 0:00:06.7]} 45. fxe5 {[%clk 0:00:49.7]} 45... Ne6 {[%clk
0:00:07]} 46. Nxe6 {[%clk 0:00:32.3]} 46... Kxe6 {[%clk 0:00:08.9]} 47. Rg6+
{[%clk 0:00:33.2]} 47... Kxe5 {[%clk 0:00:10.1]} 48. Rxb6 {[%clk 0:00:34.6]}
48... Rc3+ {[%clk 0:00:07.7]} 49. Kf2 {[%clk 0:00:36]} 49... Rxa3 {[%clk
0:00:08.6]} 50. Rh6 {[%clk 0:00:37.3]} 50... Kf4 {[%clk 0:00:08.2]} 51. Rxh5
{[%clk 0:00:38.7]} 51... Ra2+ {[%clk 0:00:09.4]} 52. Ke1 {[%clk 0:00:39.8]}
52... Ke3 {[%clk 0:00:09.8]} 53. Kf1 {[%clk 0:00:40.2]} 53... f4 {[%clk
0:00:10.8]} 54. Rb5 {[%clk 0:00:40.2]} 54... Ra1+ {[%clk 0:00:10.4]} 55. Kg2
{[%clk 0:00:40.7]} 55... f3+ {[%clk 0:00:12]} 56. Kg3 {[%clk 0:00:41.8]} 56...
Rg1+ {[%clk 0:00:12.2]} 57. Kh2 {[%clk 0:00:42.5]} 57... f2 {[%clk 0:00:13.8]}
58. Rb3+ {[%clk 0:00:42.5]} 58... Ke4 {[%clk 0:00:14.1]} 59. Rb4+ {[%clk
0:00:43.6]} 59... Kd5 {[%clk 0:00:14.7]} 60. Rb5+ {[%clk 0:00:44.8]} 60... Kc6
{[%clk 0:00:15.9]} 61. Rf5 {[%clk 0:00:41.3]} 61... f1=Q {[%clk 0:00:17.1]} 62.
Rxf1 {[%clk 0:00:41.6]} 62... Rxf1 {[%clk 0:00:19]} 63. Kg3 {[%clk 0:00:42.4]}
63... Kd7 {[%clk 0:00:19.7]} 64. Kg4 {[%clk 0:00:44.3]} 64... Ke7 {[%clk
0:00:21.1]} 0-1

[Event "*** Titled Tuesday Blitz"]
[Site "Chess.com"]
[Date "2019.08.06"]
[Round "7"]
[White "Padenie_Zvezd"]
[Black "AliKa2810"]
[Result "1-0"]
[WhiteElo "2812"]
[BlackElo "2562"]
[TimeControl "180+2"]
[EndTime "14:38:34 PDT"]
[Termination "Padenie_Zvezd won by resignation"]

1. d4 {[%clk 0:03:01.9]} 1... Nf6 {[%clk 0:02:59.1]} 2. c4 {[%clk 0:03:02.7]}
2... g6 {[%clk 0:02:57.4]} 3. Nc3 {[%clk 0:03:01.7]} 3... Bg7 {[%clk 0:02:58.9]}
4. e4 {[%clk 0:03:02.6]} 4... d6 {[%clk 0:02:59]} 5. Nf3 {[%clk 0:03:03.6]} 5...
O-O {[%clk 0:02:59.3]} 6. Be2 {[%clk 0:03:04.9]} 6... e5 {[%clk 0:03:00.8]} 7.
O-O {[%clk 0:03:06.1]} 7... Nc6 {[%clk 0:03:02.4]} 8. d5 {[%clk 0:03:07.4]} 8...
Ne7 {[%clk 0:03:03.7]} 9. Ne1 {[%clk 0:03:09]} 9... Nd7 {[%clk 0:03:01.8]} 10.
Nd3 {[%clk 0:03:10.3]} 10... f5 {[%clk 0:03:03.4]} 11. Bd2 {[%clk 0:03:11.8]}
11... Nf6 {[%clk 0:03:02.3]} 12. f3 {[%clk 0:03:13.1]} 12... f4 {[%clk
0:02:52.3]} 13. c5 {[%clk 0:03:14.4]} 13... h5 {[%clk 0:02:52.9]} 14. a4 {[%clk
0:03:03.6]} 14... g5 {[%clk 0:02:53.4]} 15. cxd6 {[%clk 0:03:03.4]} 15... cxd6
{[%clk 0:02:53.8]} 16. Nf2 {[%clk 0:03:05.3]} 16... Ng6 {[%clk 0:02:44.4]} 17.
h3 {[%clk 0:03:05.4]} 17... Nh4 {[%clk 0:02:44.9]} 18. Qc2 {[%clk 0:03:05]}
18... Bd7 {[%clk 0:02:31.8]} 19. Rfc1 {[%clk 0:03:05.4]} 19... Rc8 {[%clk
0:02:31.5]} 20. Qd1 {[%clk 0:02:57.4]} 20... Qb6 {[%clk 0:02:22.1]} 21. a5
{[%clk 0:02:51.2]} 21... Qd4 {[%clk 0:02:20.7]} 22. Bb5 {[%clk 0:02:43.5]} 22...
Bxh3 {[%clk 0:02:04.4]} 23. Ne2 {[%clk 0:02:06.2]} 23... Qxb2 {[%clk 0:01:58.6]}
24. Rcb1 {[%clk 0:01:59.2]} 24... Qc2 {[%clk 0:01:47.7]} 25. Nxh3 {[%clk
0:01:58.6]} 25... Qc5+ {[%clk 0:01:44.2]} 26. Nf2 {[%clk 0:01:37.7]} 26... g4
{[%clk 0:01:45.1]} 27. Bb4 {[%clk 0:01:26]} 27... Qxb5 {[%clk 0:01:42.1]} 28.
Bxd6 {[%clk 0:01:27]} 28... Qc4 {[%clk 0:01:43.1]} 29. Bxf8 {[%clk 0:01:19.2]}
29... Rxf8 {[%clk 0:01:41.4]} 30. Ra3 {[%clk 0:00:36]} 30... g3 {[%clk
0:01:28.9]} 31. Nd3 {[%clk 0:00:37.2]} 31... Qc8 {[%clk 0:00:55.2]} 32. Qf1
{[%clk 0:00:14.5]} 32... Nxe4 {[%clk 0:00:49.6]} 33. fxe4 {[%clk 0:00:13.8]}
33... f3 {[%clk 0:00:50.9]} 34. Nxg3 {[%clk 0:00:15]} 34... fxg2 {[%clk
0:00:51.9]} 35. Qe2 {[%clk 0:00:15.4]} 35... Qh3 {[%clk 0:00:50.1]} 36. Nf2
{[%clk 0:00:14.5]} 36... Qc8 {[%clk 0:00:20.2]} 37. Qxh5 {[%clk 0:00:12.9]}
37... Qc5 {[%clk 0:00:15.4]} 38. Ra2 {[%clk 0:00:11.6]} 38... Rf4 {[%clk
0:00:14.8]} 39. Qe8+ {[%clk 0:00:09.1]} 39... Kh7 {[%clk 0:00:14.6]} 40. Qh5+
{[%clk 0:00:10.1]} 40... Kg8 {[%clk 0:00:15.9]} 41. Re2 {[%clk 0:00:07]} 41...
Qc3 {[%clk 0:00:15.2]} 42. Qe8+ {[%clk 0:00:06]} 42... Kh7 {[%clk 0:00:15.6]}
43. Qh5+ {[%clk 0:00:07.5]} 43... Kg8 {[%clk 0:00:17]} 44. Kh2 {[%clk
0:00:08.4]} 44... Bf6 {[%clk 0:00:10.9]} 45. Rxb7 {[%clk 0:00:08.9]} 45... Nf3+
{[%clk 0:00:10.1]} 46. Kxg2 {[%clk 0:00:09.6]} 46... Nh4+ {[%clk 0:00:10.4]} 47.
Kh3 {[%clk 0:00:10.1]} 47... Bg7 {[%clk 0:00:04.5]} 48. Qe8+ {[%clk 0:00:08]}
48... Kh7 {[%clk 0:00:05.8]} 49. Qh5+ {[%clk 0:00:08.8]} 49... Kg8 {[%clk
0:00:07.1]} 50. Rb8+ {[%clk 0:00:09.9]} 50... Bf8 {[%clk 0:00:08.1]} 51. Qg5+
{[%clk 0:00:11]} 51... Kh7 {[%clk 0:00:09.3]} 52. Rb7+ {[%clk 0:00:11.9]} 52...
Kh8 {[%clk 0:00:08.3]} 53. Qh5+ {[%clk 0:00:13.1]} 1-0

[Event "*** Titled Tuesday Blitz"]
[Site "Chess.com"]
[Date "2019.08.06"]
[Round "7"]
[White "kasparicy"]
[Black "Quiet_Desperation"]
[Result "1/2-1/2"]
[WhiteElo "2408"]
[BlackElo "2486"]
[TimeControl "180+2"]
[EndTime "14:38:35 PDT"]
[Termination "Game drawn by repetition"]

1. e4 {[%clk 0:03:01.9]} 1... e6 {[%clk 0:03:00.2]} 2. d4 {[%clk 0:03:02.2]}
2... d5 {[%clk 0:03:01.5]} 3. Nd2 {[%clk 0:03:04.1]} 3... Nf6 {[%clk 0:03:02.6]}
4. e5 {[%clk 0:03:04.9]} 4... Nfd7 {[%clk 0:03:03.9]} 5. Bd3 {[%clk 0:03:06.8]}
5... c5 {[%clk 0:03:04.9]} 6. c3 {[%clk 0:03:08.4]} 6... Nc6 {[%clk 0:03:06.2]}
7. Ngf3 {[%clk 0:03:09.9]} 7... cxd4 {[%clk 0:03:06.2]} 8. cxd4 {[%clk
0:03:11.8]} 8... Qb6 {[%clk 0:03:07.5]} 9. O-O {[%clk 0:03:12.9]} 9... g6 {[%clk
0:03:03.7]} 10. Re1 {[%clk 0:03:04.9]} 10... Bg7 {[%clk 0:03:04]} 11. Nb3 {[%clk
0:03:04.9]} 11... a5 {[%clk 0:03:04.9]} 12. Be3 {[%clk 0:02:57.9]} 12... O-O
{[%clk 0:03:01.8]} 13. Qd2 {[%clk 0:02:51.7]} 13... a4 {[%clk 0:03:00.7]} 14.
Nc1 {[%clk 0:02:52.1]} 14... Qb4 {[%clk 0:02:52.1]} 15. Ne2 {[%clk 0:02:42.8]}
15... f6 {[%clk 0:02:46.6]} 16. exf6 {[%clk 0:02:41.6]} 16... Nxf6 {[%clk
0:02:47.8]} 17. Nc3 {[%clk 0:02:41.8]} 17... Ng4 {[%clk 0:02:41.9]} 18. a3
{[%clk 0:02:32]} 18... Qd6 {[%clk 0:02:42.8]} 19. h3 {[%clk 0:02:25.8]} 19...
Nxe3 {[%clk 0:02:34.7]} 20. Qxe3 {[%clk 0:02:27.7]} 20... Rxf3 {[%clk
0:02:34.5]} 21. Qxf3 {[%clk 0:02:25.2]} 21... Nxd4 {[%clk 0:02:33]} 22. Qd1
{[%clk 0:02:20]} 22... Bd7 {[%clk 0:02:32]} 23. Rc1 {[%clk 0:02:19.2]} 23... Bh6
{[%clk 0:02:16.6]} 24. Rb1 {[%clk 0:02:12.2]} 24... Rf8 {[%clk 0:02:04.5]} 25.
Bxg6 {[%clk 0:02:05.3]} 25... Nf3+ {[%clk 0:02:00.8]} 26. gxf3 {[%clk
0:02:06.4]} 26... hxg6 {[%clk 0:02:01.9]} 27. Qd3 {[%clk 0:02:05.7]} 27... Kh7
{[%clk 0:01:23.3]} 28. Kh1 {[%clk 0:02:01.6]} 28... Bc6 {[%clk 0:01:16.5]} 29.
Rg1 {[%clk 0:01:59.4]} 29... e5 {[%clk 0:01:12.8]} 30. Ne4 {[%clk 0:01:58.9]}
30... Qe6 {[%clk 0:01:09]} 31. Ng5+ {[%clk 0:01:55.1]} 31... Bxg5 {[%clk
0:01:10]} 32. Rxg5 {[%clk 0:01:57]} 32... Qxh3+ {[%clk 0:01:09]} 33. Kg1 {[%clk
0:01:58.3]} 33... e4 {[%clk 0:00:57.9]} 34. Qf1 {[%clk 0:01:47.9]} 34... Qxf3
{[%clk 0:00:51.9]} 35. Qg2 {[%clk 0:01:39.2]} 35... Qf6 {[%clk 0:00:49.7]} 36.
b3 {[%clk 0:01:34.7]} 36... d4 {[%clk 0:00:47.3]} 37. bxa4 {[%clk 0:01:35.1]}
37... e3 {[%clk 0:00:48.7]} 38. Qh2+ {[%clk 0:01:23.3]} 38... Kg7 {[%clk
0:00:46]} 39. Qc7+ {[%clk 0:01:17.7]} 39... Kg8 {[%clk 0:00:39.6]} 40. Qg3
{[%clk 0:01:19.6]} 40... exf2+ {[%clk 0:00:40.3]} 41. Kf1 {[%clk 0:01:20.8]}
41... Be4 {[%clk 0:00:35.2]} 42. Rd1 {[%clk 0:01:17.3]} 42... Qa6+ {[%clk
0:00:32.9]} 43. Rb5 {[%clk 0:01:15.1]} 43... Qxa4 {[%clk 0:00:26.5]} 44. Qb3+
{[%clk 0:00:58.5]} 44... Qxb3 {[%clk 0:00:23.2]} 45. Rxb3 {[%clk 0:01:00.4]}
45... Bc2 {[%clk 0:00:21.5]} 46. Rbd3 {[%clk 0:00:59.3]} 46... Bxd1 {[%clk
0:00:21.9]} 47. Rxd1 {[%clk 0:01:00.1]} 47... Rf4 {[%clk 0:00:22.1]} 48. Rb1
{[%clk 0:00:58.5]} 48... d3 {[%clk 0:00:20.4]} 49. Rxb7 {[%clk 0:00:57.7]} 49...
Rd4 {[%clk 0:00:21]} 50. Rb1 {[%clk 0:00:57.5]} 50... d2 {[%clk 0:00:15.4]} 51.
Rd1 {[%clk 0:00:58.6]} 51... Rd3 {[%clk 0:00:13.3]} 52. a4 {[%clk 0:00:58.3]}
52... Ra3 {[%clk 0:00:12.9]} 53. Kxf2 {[%clk 0:00:59.4]} 53... Rxa4 {[%clk
0:00:14.2]} 54. Rxd2 {[%clk 0:01:00.9]} 54... Re4 {[%clk 0:00:15]} 55. Kg3
{[%clk 0:01:00.8]} 55... Kg7 {[%clk 0:00:14.7]} 56. Rf2 {[%clk 0:01:00.7]} 56...
Kh6 {[%clk 0:00:15.8]} 57. Ra2 {[%clk 0:01:00.2]} 57... Kg5 {[%clk 0:00:16]} 58.
Ra5+ {[%clk 0:01:00.9]} 58... Kf6 {[%clk 0:00:17]} 59. Ra6+ {[%clk 0:01:02.1]}
59... Kf5 {[%clk 0:00:17.9]} 60. Ra5+ {[%clk 0:01:03]} 60... Re5 {[%clk
0:00:19.5]} 61. Rxe5+ {[%clk 0:01:03.7]} 61... Kxe5 {[%clk 0:00:21.4]} 62. Kg4
{[%clk 0:01:05.6]} 62... Kf6 {[%clk 0:00:20.9]} 63. Kf4 {[%clk 0:01:06.8]} 63...
g5+ {[%clk 0:00:21.6]} 64. Kg4 {[%clk 0:01:08.7]} 64... Kg6 {[%clk 0:00:23.4]}
65. Kg3 {[%clk 0:01:10]} 65... Kh5 {[%clk 0:00:25.3]} 66. Kh3 {[%clk 0:01:11.3]}
66... g4+ {[%clk 0:00:27.2]} 67. Kg3 {[%clk 0:01:13.2]} 67... Kg5 {[%clk
0:00:29.1]} 68. Kg2 {[%clk 0:01:14.8]} 68... Kh4 {[%clk 0:00:31]} 69. Kh2 {[%clk
0:01:16]} 69... g3+ {[%clk 0:00:32.6]} 70. Kg2 {[%clk 0:01:17.7]} 70... Kg4
{[%clk 0:00:34.5]} 71. Kg1 {[%clk 0:01:19]} 71... Kh3 {[%clk 0:00:36.4]} 72. Kh1
{[%clk 0:01:20.2]} 72... Kg4 {[%clk 0:00:37.2]} 73. Kg2 {[%clk 0:01:21.4]} 73...
Kf4 {[%clk 0:00:38.8]} 74. Kg1 {[%clk 0:01:22.1]} 74... Kf3 {[%clk 0:00:40.7]}
75. Kf1 {[%clk 0:01:23.3]} 75... Kg4 {[%clk 0:00:40.3]} 76. Kg2 {[%clk
0:01:25.2]} 76... Kf4 {[%clk 0:00:41.8]} 77. Kg1 {[%clk 0:01:26.2]} 77... Kg4
{[%clk 0:00:43.7]} 78. Kg2 {[%clk 0:01:27.3]} 1/2-1/2

[Event "*** Titled Tuesday Blitz"]
[Site "Chess.com"]
[Date "2019.08.06"]
[Round "7"]
[White "dmosesov"]
[Black "BlitzWizard04"]
[Result "1/2-1/2"]
[WhiteElo "2546"]
[BlackElo "2463"]
[TimeControl "180+2"]
[EndTime "14:38:46 PDT"]
[Termination "Game drawn by repetition"]

1. Nf3 {[%clk 0:03:01.9]} 1... Nf6 {[%clk 0:03:00.4]} 2. d4 {[%clk 0:03:03]}
2... g6 {[%clk 0:03:00.7]} 3. c4 {[%clk 0:03:04]} 3... Bg7 {[%clk 0:03:01.4]} 4.
Nc3 {[%clk 0:03:05.5]} 4... O-O {[%clk 0:03:02.5]} 5. e4 {[%clk 0:03:06.4]} 5...
d6 {[%clk 0:03:04]} 6. h3 {[%clk 0:03:07.1]} 6... Na6 {[%clk 0:03:00.8]} 7. Be3
{[%clk 0:03:07.3]} 7... c5 {[%clk 0:02:59.3]} 8. d5 {[%clk 0:03:05.6]} 8... e6
{[%clk 0:03:00.6]} 9. Bd3 {[%clk 0:02:52.7]} 9... Nc7 {[%clk 0:02:57.2]} 10. O-O
{[%clk 0:02:52.4]} 10... e5 {[%clk 0:02:57.8]} 11. Nd2 {[%clk 0:02:16.8]} 11...
Nh5 {[%clk 0:02:55.5]} 12. Re1 {[%clk 0:02:17.7]} 12... Rb8 {[%clk 0:02:47.2]}
13. a3 {[%clk 0:02:15.6]} 13... Nf4 {[%clk 0:02:22.9]} 14. Bf1 {[%clk
0:02:15.8]} 14... h5 {[%clk 0:02:23.5]} 15. b4 {[%clk 0:02:08]} 15... b6 {[%clk
0:02:23.6]} 16. Kh2 {[%clk 0:02:07.2]} 16... g5 {[%clk 0:02:18.2]} 17. g3 {[%clk
0:02:03]} 17... h4 {[%clk 0:02:19]} 18. Nf3 {[%clk 0:01:54.2]} 18... hxg3+
{[%clk 0:02:13.1]} 19. fxg3 {[%clk 0:01:56.1]} 19... g4 {[%clk 0:02:14.5]} 20.
Nh4 {[%clk 0:01:25.7]} 20... Nxh3 {[%clk 0:01:58.7]} 21. Bxh3 {[%clk 0:01:26.3]}
21... gxh3 {[%clk 0:02:00.6]} 22. Qh5 {[%clk 0:01:25.7]} 22... Ne8 {[%clk
0:01:37.8]} 23. Nf5 {[%clk 0:00:46.3]} 23... Bxf5 {[%clk 0:01:32.5]} 24. exf5
{[%clk 0:00:46.9]} 24... cxb4 {[%clk 0:01:25.1]} 25. axb4 {[%clk 0:00:47.2]}
25... Qc7 {[%clk 0:01:23.9]} 26. Qh4 {[%clk 0:00:18.6]} 26... Rc8 {[%clk
0:01:22.9]} 27. Nb5 {[%clk 0:00:14.9]} 27... Qxc4 {[%clk 0:01:20]} 28. Qxc4
{[%clk 0:00:16.8]} 28... Rxc4 {[%clk 0:01:21.9]} 29. Rxa7 {[%clk 0:00:16.9]}
29... Rxb4 {[%clk 0:01:20.3]} 30. Nc3 {[%clk 0:00:18.3]} 30... e4 {[%clk
0:01:16.4]} 31. Ne2 {[%clk 0:00:19.3]} 31... Be5 {[%clk 0:01:15.2]} 32. Bf4
{[%clk 0:00:17]} 32... Nf6 {[%clk 0:01:15.5]} 33. Bxe5 {[%clk 0:00:15.9]} 33...
dxe5 {[%clk 0:01:17.4]} 34. d6 {[%clk 0:00:17.3]} 34... Rd8 {[%clk 0:01:16.6]}
35. Kxh3 {[%clk 0:00:16.3]} 35... Rxd6 {[%clk 0:01:17.1]} 36. Rc1 {[%clk
0:00:17.6]} 36... Rd7 {[%clk 0:01:14.3]} 37. Rc8+ {[%clk 0:00:15]} 37... Kg7
{[%clk 0:01:14.8]} 38. Rxd7 {[%clk 0:00:12.3]} 38... Nxd7 {[%clk 0:01:15.3]} 39.
Rc7 {[%clk 0:00:14.2]} 39... Nc5 {[%clk 0:01:08.9]} 40. Nc3 {[%clk 0:00:15.5]}
40... e3 {[%clk 0:01:00.2]} 41. f6+ {[%clk 0:00:16.1]} 41... Kg6 {[%clk
0:00:58.3]} 42. Rc8 {[%clk 0:00:17.5]} 42... Rd4 {[%clk 0:00:54.8]} 43. Ra8
{[%clk 0:00:08.7]} 43... Rd3 {[%clk 0:00:50.8]} 44. Ne2 {[%clk 0:00:05.9]} 44...
Rd2 {[%clk 0:00:51.6]} 45. Nc3 {[%clk 0:00:06.7]} 45... Rc2 {[%clk 0:00:49.4]}
46. Nd5 {[%clk 0:00:03.7]} 46... e2 {[%clk 0:00:48.5]} 47. Rg8+ {[%clk
0:00:04.9]} 47... Kh7 {[%clk 0:00:31.4]} 48. Rg7+ {[%clk 0:00:05.7]} 48... Kh8
{[%clk 0:00:28.1]} 49. Ne7 {[%clk 0:00:07.6]} 49... e1=Q {[%clk 0:00:26.4]} 50.
Rg8+ {[%clk 0:00:08.9]} 50... Kh7 {[%clk 0:00:26.4]} 51. Rg7+ {[%clk 0:00:10.8]}
51... Kh8 {[%clk 0:00:21.4]} 52. Rg8+ {[%clk 0:00:12]} 52... Kh7 {[%clk
0:00:22.9]} 53. Rg7+ {[%clk 0:00:13.9]} 53... Kh8 {[%clk 0:00:23.7]} 1/2-1/2